bitfinex/quotes_ETHUSD_20250430
["timestamp","ask_amount","ask_price","bid_price","bid_amount"]
[1746032718618,5.6425848,1772.3,1772.1,4.856]
[1746032718818,11.28522584,1772.3,1772.1,4.856]
[1746032719029,5.64270398,1772.2,1772.1,4.856]
[1746032719452,6.73414823,1772.2,1772.1,4.856]
[1746032730282,10.08026704,1772.2,1772.1,4.856]
[1746032730488,11.65254658,1772.2,1772.1,4.856]
[1746032731247,10.08026704,1772.2,1772.1,4.856]
[1746032731446,10.08026704,1772.2,1772.1,5.20280411]
[1746032732484,6.73414823,1772.2,1772.1,0.34680411]
[1746032732781,6.73414823,1772.2,1772.0,6.45006411]
[1746032732782,0.31744425,1772.2,1772.0,6.45006411]
[1746032732988,0.31744425,1772.2,1772.1,0.34279175]
[1746032734060,5.96014823,1772.2,1772.1,0.34279175]
[1746032734261,7.53731725,1772.2,1771.8,16.89272319]
[1746032734460,5.96014823,1772.2,1771.9,0.34279175]
[1746032734662,5.96014823,1772.2,1771.9,5.98639826]
[1746032734887,5.96054799,1772.1,1771.9,0.34279175]
[1746032735485,0.31744425,1772.1,1771.9,0.34279175]
[1746032735884,0.31744425,1772.0,1771.9,0.34279175]
[1746032737190,0.31744425,1772.0,1771.9,5.98645109]
[1746032737386,0.31744425,1772.0,1771.9,0.34279175]
[1746032740087,6.7804851,1772.0,1771.7,4.808]
[1746032740289,6.7804851,1772.0,1771.8,0.31334917]
[1746032740456,0.31744425,1771.9,1771.8,0.31334917]
[1746032745622,13.70010091,1771.9,1771.8,0.31334917]
[1746032745893,6.44173367,1771.5,1771.4,4.808]
[1746032746111,6.44173367,1771.5,1771.4,0.25946896]
[1746032746261,5.64534054,1771.4,1771.1,23.464]
[1746032746460,10.43223659,1771.5,1771.2,0.26110585]
[1746032746661,4.78709218,1771.5,1771.2,5.90694927]
[1746032746877,0.31744425,1771.4,1771.2,5.90694927]
[1746032747077,0.31744425,1771.4,1771.2,0.26110585]
[1746032747301,5.96278119,1771.4,1771.2,0.26110585]
[1746032747598,0.31744425,1771.4,1771.2,0.26110585]
[1746032747774,0.31744425,1771.3,1771.2,0.26110585]
[1746032752414,12.90540611,1771.3,1771.2,0.26110585]
[1746032752976,7.25983507,1771.3,1771.2,0.26110585]
[1746032753176,3.31744425,1771.3,1771.2,0.26110585]
[1746032755004,8.96301529,1771.3,1771.2,0.26110585]
[1746032758535,13.1165341,1771.3,1771.2,0.26110585]
[1746032759213,5.64629217,1771.1,1770.8,5.571]
[1746032759397,5.64629217,1771.1,1770.9,0.26559251]
[1746032759591,5.64629217,1771.1,1770.8,4.81]
[1746032759831,5.64629217,1771.1,1770.9,0.26935319]
[1746032760141,5.64684623,1770.9,1770.8,4.81]
[1746032760344,11.99296504,1770.9,1770.8,4.81]
[1746032760835,17.95622501,1770.9,1770.5,11.17965357]
[1746032761038,8.96300058,1770.9,1770.5,11.17965357]
[1746032761225,8.96300058,1770.9,1770.5,16.82759372]
[1746032761535,5.64717655,1770.8,1770.5,11.17954015]
[1746032761721,8.64684623,1770.9,1770.5,16.82740519]
[1746032762198,8.64684623,1770.9,1770.6,5.64779081]
[1746032762397,0.31595062,1770.8,1770.6,5.64779081]
[1746032763099,0.31595062,1770.8,1770.5,10.41990094]
[1746032763610,8.64684623,1770.9,1770.5,10.41990094]
[1746032763811,5.64759298,1770.7,1770.5,4.772]
[1746032764003,5.64729368,1770.8,1770.5,4.772]
[1746032764202,5.64749055,1770.7,1770.5,4.772]
[1746032764417,5.64729368,1770.8,1770.5,4.772]
[1746032764616,5.64758225,1770.7,1770.5,4.772]
[1746032764936,6.94124817,1770.8,1770.5,4.772]
[1746032765141,12.58865175,1770.8,1770.5,4.772]
[1746032765343,5.647803,1770.6,1770.5,4.772]
[1746032765715,6.46898978,1770.7,1770.5,4.772]
[1746032765924,0.31583457,1770.6,1770.3,5.6485963]
[1746032766316,0.31583457,1770.6,1770.3,11.29710551]
[1746032766957,3.0,1770.8,1770.5,6.41452199]
[1746032767140,3.0,1770.8,1770.5,0.7664]
[1746032767345,5.64751233,1770.7,1770.4,6.44493258]
[1746032767540,5.64751233,1770.7,1770.4,0.7966]
[1746032767856,5.64751233,1770.7,1770.4,6.44489974]
[1746032768152,5.64751233,1770.7,1770.4,0.7966]
[1746032768546,0.31576736,1770.6,1770.4,0.7966]
[1746032769255,0.31576736,1770.5,1770.2,16.88550315]
[1746032769455,0.31576736,1770.5,1770.2,11.23659998]
[1746032769962,0.31576736,1770.5,1770.2,11.23658036]
[1746032770151,0.31576736,1770.5,1770.3,5.9225774]
[1746032770326,0.31576736,1770.5,1770.3,0.27390435]
[1746032771634,0.31576736,1770.5,1770.3,5.92259828]
[1746032771825,0.31576736,1770.5,1770.3,0.27390435]
[1746032772460,0.31576736,1770.5,1770.3,5.92263015]
[1746032772758,0.31576736,1770.5,1770.3,5.9225155]
[1746032773333,0.31576736,1770.5,1770.4,5.64844103]
[1746032773533,0.31576736,1770.5,1770.4,6.40234103]
[1746032773840,0.31576736,1770.5,1770.4,6.67624538]
[1746032774562,0.31576736,1770.7,1770.5,5.64799865]
[1746032775065,5.96326781,1770.7,1770.6,0.27493652]
[1746032775234,2.08582061,1770.7,1770.4,6.40218352]
[1746032775434,0.31576736,1770.7,1770.5,0.27493652]
[1746032775634,0.31576736,1770.6,1770.5,5.92294718]
[1746032775847,0.31576736,1770.6,1770.5,0.27493652]
[1746032776171,0.31576736,1770.6,1770.5,5.92305851]
[1746032776665,0.31576736,1770.7,1770.5,5.92305851]
[1746032776873,0.31576736,1770.7,1770.5,5.92298959]
[1746032777232,0.31576736,1770.7,1770.5,11.57101087]
[1746032777557,0.31576736,1770.6,1770.5,5.92291063]
[1746032778353,0.31576736,1770.7,1770.5,5.92291063]
[1746032779171,0.31576736,1770.6,1770.5,5.92291063]
[1746032779969,0.31576736,1770.6,1770.5,0.27493652]
[1746032780143,0.91210927,1770.6,1770.5,0.27493652]
[1746032780465,7.32841227,1770.6,1770.5,0.27493652]
[1746032780672,12.97647477,1770.6,1770.2,11.20086677]
[1746032780874,0.31576736,1770.5,1770.3,0.27869983]
[1746032781081,0.31576736,1770.5,1770.3,5.92743196]
[1746032781365,0.31576736,1770.5,1770.3,5.92728305]
[1746032781571,0.31576736,1770.5,1770.3,5.9272458]
[1746032781868,0.31576736,1770.4,1770.3,5.9272458]
[1746032782260,0.31576736,1770.7,1770.4,5.64825653]
[1746032782448,5.96326546,1770.7,1770.4,5.64825653]
[1746032782644,5.96326546,1770.7,1770.5,0.27869983]
[1746032782850,0.31576736,1770.6,1770.4,5.6483348]
[1746032783074,0.31576736,1770.6,1770.5,0.27869983]
[1746032784352,0.31576736,1770.6,1770.5,6.67872182]
[1746032785256,0.31576736,1770.6,1770.5,1.03059983]
[1746032787582,0.31576736,1770.6,1770.5,6.67872182]
[1746032790096,0.31576736,1770.6,1770.5,0.27869983]
[1746032790454,6.71302444,1770.6,1770.5,0.27869983]
[1746032790655,7.46752239,1770.6,1770.5,0.27869983]
[1746032790854,10.46752239,1770.6,1770.5,0.27869983]
[1746032791084,10.46752239,1770.6,1770.1,4.753]
[1746032791085,5.64872862,1770.4,1770.1,4.753]
[1746032791351,0.8078,1770.3,1770.2,0.2787546]
[1746032791551,0.8078,1770.3,1770.1,4.753]
[1746032791748,0.8078,1770.3,1770.2,0.2787546]
[1746032792059,1.12356736,1770.3,1770.2,0.2787546]
[1746032792257,1.12356736,1770.3,1770.1,4.753]
[1746032792473,0.31576736,1770.2,1770.1,4.753]
[1746032792757,8.96484656,1770.2,1770.1,4.753]
[1746032793063,5.64952379,1770.1,1769.8,4.753]
[1746032793275,6.78131333,1770.0,1769.7,18.665]
[1746032793481,6.78131333,1770.0,1769.7,23.418]
[1746032793781,0.31576736,1769.9,1769.7,29.06863666]
[1746032794165,0.31576736,1769.9,1769.7,10.4036625]
[1746032794365,0.31576736,1769.8,1769.7,10.4036625]
[1746032794809,1.09686736,1769.8,1769.1,0.8214]
[1746032794964,1.09686736,1769.8,1769.1,5.5744]
[1746032794965,3.34611881,1769.7,1769.1,5.5744]
[1746032795168,0.44429862,1769.7,1769.4,5.65139916]
[1746032795403,0.31576736,1769.6,1769.5,6.47141393]
[1746032795702,0.31576736,1769.6,1769.4,5.65139916]
[1746032795905,0.31576736,1769.6,1769.5,5.65131393]
[1746032796279,0.31576736,1769.6,1769.4,5.65143937]
[1746032796468,0.31576736,1769.6,1769.4,5.65149697]
[1746032796663,0.31576736,1769.6,1769.4,10.40441689]
[1746032796866,0.31576736,1769.5,1769.4,10.40441689]
[1746032797487,0.31576736,1769.7,1769.4,10.40441689]
[1746032797696,1.47746039,1769.7,1769.4,10.40441689]
[1746032798195,0.31576736,1769.6,1769.4,4.753]
[1746032798402,0.31576736,1769.6,1769.4,16.05595255]
[1746032798717,0.31576736,1769.6,1769.5,5.65131393]
[1746032799005,0.31576736,1769.6,1769.4,10.4044526]
[1746032799172,0.31576736,1769.6,1769.5,5.65131393]
[1746032799509,0.31576736,1769.7,1769.5,5.65131393]
[1746032799712,0.31576736,1769.7,1769.4,10.4044457]
[1746032799876,0.31576736,1769.7,1769.5,0.25434427]
[1746032800724,0.31576736,1769.6,1769.5,0.25434427]
[1746032801920,0.31576736,1769.6,1769.4,5.65163286]
[1746032802330,0.31576736,1769.6,1769.5,0.25434427]
[1746032802691,0.31576736,1769.6,1769.3,16.87765332]
[1746032802908,0.31576736,1769.6,1769.4,0.25434427]
[1746032803195,1.01677398,1769.6,1769.4,0.25434427]
[1746032803511,0.70100662,1769.6,1769.4,5.90596187]
[1746032803712,1.0436012,1769.7,1769.4,5.90596187]
[1746032804025,6.69437364,1769.7,1769.4,5.90596187]
[1746032804325,1.0436012,1769.7,1769.4,5.90596187]
[1746032804702,0.31597883,1769.6,1769.4,5.90596187]
[1746032805089,0.31597883,1769.6,1769.5,5.65131393]
[1746032805599,0.31597883,1769.6,1769.5,5.9056582]
[1746032806636,5.65038312,1769.8,1769.5,5.9056582]
[1746032806935,7.76831646,1769.8,1769.5,5.9056582]
[1746032807088,7.76831646,1769.8,1769.5,0.25434427]
[1746032807289,5.96662086,1769.7,1769.5,0.25434427]
[1746032807542,0.31591898,1769.7,1769.5,0.25434427]
[1746032808333,5.65077091,1769.7,1769.4,5.6515046]
[1746032808492,5.65077091,1769.7,1769.5,0.25434427]
[1746032808688,6.99267965,1769.7,1769.5,0.25434427]
[1746032808885,1.34190874,1769.7,1769.5,0.25434427]
[1746032809083,7.76831646,1769.8,1769.5,5.90555234]
[1746032809734,9.09,1769.9,1769.6,6.45730318]
[1746032810041,0.31596222,1769.7,1769.6,0.8065]
[1746032810333,0.31596222,1769.7,1769.6,6.45749457]
[1746032810983,3.0,1770.0,1769.7,5.65048095]
[1746032811393,3.0,1770.0,1769.7,10.40548095]
[1746032812031,0.31600763,1769.9,1769.7,10.40548095]
[1746032812828,0.31600763,1769.9,1769.7,4.755]
[1746032813277,6.54676517,1769.9,1769.7,4.755]
[1746032813434,5.65035597,1769.8,1769.7,4.755]
[1746032813728,6.76876569,1769.8,1769.7,4.755]
[1746032814028,5.65093497,1769.7,1769.4,4.755]
[1746032814321,7.0973513,1769.7,1769.4,4.755]
[1746032814528,1.44641633,1769.7,1769.4,10.40660903]
[1746032814889,0.31620972,1769.6,1769.5,0.25165132]
[1746032815921,5.96720429,1769.6,1769.5,0.25165132]
[1746032816489,6.79960429,1769.6,1769.5,0.25165132]
[1746032816694,8.1892802,1769.6,1769.5,0.25165132]
[1746032819639,5.65135485,1769.5,1769.2,4.755]
[1746032820145,0.31620972,1769.4,1769.2,10.40725397]
[1746032820440,0.31620972,1769.4,1769.2,4.755]
[1746032821013,0.31620972,1769.4,1769.2,10.40726656]
[1746032821341,7.87326488,1769.6,1769.2,10.40726656]
[1746032821342,0.31620972,1769.3,1769.2,10.40726656]
[1746032821546,0.31620972,1769.3,1769.2,4.755]
[1746032821753,0.31620972,1769.3,1769.0,0.8217]
[1746032821923,0.31620972,1769.2,1769.0,4.75]
[1746032822410,5.96860654,1769.2,1769.0,4.75]
[1746032822611,5.65259171,1769.1,1769.0,4.75]
[1746032823033,0.31620972,1769.1,1769.0,4.75]
[1746032823245,5.96880143,1769.1,1769.0,4.75]
[1746032823737,7.13092126,1769.1,1769.0,4.75]
[1746032824143,3.0,1769.0,1768.5,0.4029331]
[1746032824309,5.65398689,1768.7,1768.5,0.4029331]
[1746032824508,5.65418975,1768.6,1768.5,0.4029331]
[1746032824712,5.97039947,1768.6,1768.5,0.4029331]
[1746032825153,6.49941951,1768.6,1768.5,0.4029331]
[1746032825458,8.1501048,1768.6,1768.5,0.4029331]
[1746032826464,1.28057441,1768.6,1768.5,0.4029331]
[1746032826959,6.93476416,1768.6,1768.5,0.4029331]
[1746032827818,1.28057441,1768.6,1768.5,0.4029331]
[1746032829737,1.28057441,1768.6,1768.5,0.62094938]
[1746032830355,6.93476416,1768.6,1768.5,0.62094938]
[1746032830522,8.19364228,1768.6,1768.5,0.62094938]
[1746032830862,9.01594228,1768.6,1768.5,0.62094938]
[1746032831446,9.01594228,1768.6,1768.5,0.4029331]
[1746032831765,9.01594228,1768.6,1768.5,0.62415695]
[1746032832849,1.28057441,1768.6,1768.5,0.62415695]
[1746032833351,0.84522976,1768.6,1768.5,0.62415695]
[1746032833762,5.65391056,1768.7,1768.5,0.62415695]
[1746032834751,5.65418975,1768.6,1768.5,0.62415695]
[1746032834950,6.41231056,1768.7,1768.5,0.62415695]
[1746032835156,5.65374379,1768.8,1768.5,0.62415695]
[1746032835365,8.65355758,1768.8,1768.6,0.7683]
[1746032835560,8.65355758,1768.8,1768.7,0.22231365]
[1746032835764,9.17978311,1768.8,1768.6,0.7683]
[1746032835986,9.17978311,1768.8,1768.7,0.22231365]
[1746032836150,8.65355758,1768.8,1768.7,0.22231365]
[1746032836467,8.96929781,1768.8,1768.5,0.4029331]
[1746032836772,8.96929781,1768.8,1768.7,0.22231365]
[1746032836973,14.62310388,1768.8,1768.5,0.4029331]
[1746032837162,8.65355758,1768.8,1768.7,0.22231365]
[1746032837342,8.65355758,1768.8,1768.5,0.4029331]
[1746032837546,9.17979888,1768.8,1768.6,0.22231365]
[1746032837746,8.65355758,1768.8,1768.6,0.22231365]
[1746032838186,14.30736171,1768.8,1768.6,0.22231365]
[1746032838487,14.30735741,1768.8,1768.6,0.22231365]
[1746032838671,5.65387007,1768.7,1768.6,0.22231365]
[1746032838875,6.18018561,1768.7,1768.6,0.22231365]
[1746032839687,10.73867993,1768.7,1768.6,0.22231365]
[1746032839893,11.05452198,1768.7,1768.6,0.22231365]
[1746032840876,10.21236439,1768.7,1768.6,0.22231365]
[1746032841399,11.05493248,1768.7,1768.6,0.22231365]
[1746032845660,11.12561448,1768.7,1768.6,0.22231365]
[1746032847693,11.05493248,1768.7,1768.6,0.22231365]
[1746032847991,9.49643816,1768.7,1768.6,0.22231365]
[1746032848558,0.84256809,1768.7,1768.6,5.8765034]
[1746032848758,0.84256809,1768.7,1768.6,6.6952034]
[1746032848982,0.84256809,1768.7,1768.6,11.4482034]
[1746032849498,0.31596455,1768.7,1768.6,11.4482034]
[1746032850286,0.31596455,1768.7,1768.6,14.9982034]
[1746032850593,5.65182456,1769.4,1769.0,5.6526936]
[1746032850850,5.65182456,1769.4,1769.0,6.4412936]
[1746032851093,5.65182456,1769.4,1769.1,0.2247342]
[1746032851294,0.52847079,1769.3,1769.1,0.2247342]
[1746032851472,5.96928483,1769.2,1769.1,0.2247342]
[1746032851659,6.49775562,1769.2,1769.1,0.2247342]
[1746032854394,0.84548341,1769.2,1769.1,0.2247342]
[1746032854793,6.49775562,1769.2,1769.1,0.2247342]
[1746032855787,0.84548341,1769.2,1769.1,0.2247342]
[1746032856384,0.84548341,1769.2,1769.1,6.65162591]
[1746032856694,0.84548341,1769.2,1769.1,6.70814771]
[1746032856906,0.52847079,1769.2,1769.1,6.65162591]
[1746032857921,5.65131784,1769.5,1769.2,5.65218254]
[1746032858279,0.31675611,1769.4,1769.3,0.22176895]
[1746032858496,0.84448566,1769.4,1769.3,0.22176895]
[1746032858990,0.84448566,1769.4,1769.3,6.66882169]
[1746032864841,1.67568566,1769.4,1768.6,0.8217]
[1746032865054,5.65332584,1768.9,1768.6,5.5947]
[1746032865191,5.65332584,1768.9,1768.6,4.773]
[1746032865192,3.0,1768.9,1768.6,4.773]
[1746032865539,6.79825173,1768.8,1768.6,4.773]
[1746032865731,0.84448566,1768.8,1768.6,4.773]
[1746032865889,6.49807497,1768.8,1768.6,4.773]
[1746032866209,0.52772955,1768.7,1768.6,4.773]
[1746032866414,0.84448566,1768.7,1768.6,0.7648]
[1746032867414,6.49855457,1768.7,1768.5,5.1759331]
[1746032867587,1.49434112,1768.7,1768.5,5.1759331]
[1746032867792,0.52772955,1768.6,1768.5,5.1759331]
[1746032868325,0.84448566,1768.6,1768.5,5.1759331]
[1746032869095,0.84448566,1768.6,1768.5,10.83044257]
[1746032869295,0.52772955,1768.6,1768.5,11.62984257]
[1746032869629,3.0,1768.9,1768.6,5.65416003]
[1746032869837,8.65325705,1768.9,1768.5,11.62964497]
[1746032870041,0.8436298,1768.8,1768.5,11.62964497]
[1746032870205,0.8436298,1768.8,1768.6,5.65418489]
[1746032870400,0.3163614,1768.8,1768.5,11.62963533]
[1746032870639,5.97006531,1768.8,1768.5,5.9753331]
[1746032871036,5.97006531,1768.8,1768.5,11.62976214]
[1746032871211,8.65340907,1768.9,1768.5,11.62976214]
[1746032871417,0.52731497,1768.8,1768.5,11.62961142]
[1746032871729,0.52731497,1768.8,1768.7,6.44357007]
[1746032871915,5.65177746,1769.4,1769.1,5.65257112]
[1746032872243,5.65154544,1769.5,1769.1,5.65257112]
[1746032872439,0.52735241,1769.4,1769.2,0.17865437]
[1746032872643,0.52735241,1769.4,1769.3,6.46895274]
[1746032873017,5.65080069,1769.7,1769.3,6.64748632]
[1746032873371,5.65080069,1769.7,1769.4,10.42562167]
[1746032873515,6.47925616,1770.1,1769.5,0.817]
[1746032873708,0.52721707,1770.0,1769.7,5.65053204]
[1746032873910,6.49330272,1770.0,1769.7,5.65053204]
[1746032874139,6.49330272,1770.0,1769.8,0.1761786]
[1746032874341,0.52721707,1769.9,1769.8,0.1761786]
[1746032874739,0.84354209,1769.9,1769.6,5.65075537]
[1746032874914,0.84354209,1769.9,1769.8,0.1761786]
[1746032875112,0.84354209,1769.9,1769.6,5.65075537]
[1746032875334,0.84354209,1769.9,1769.8,5.82653457]
[1746032875335,0.31632502,1769.9,1769.8,5.82653457]
[1746032875503,0.31632502,1769.9,1769.8,5.65035597]
[1746032875709,0.84330452,1769.9,1769.8,0.1761786]
[1746032876241,6.49334124,1769.9,1769.8,0.1761786]
[1746032876442,0.84330452,1769.9,1769.6,5.65088186]
[1746032876641,0.84330452,1769.9,1769.8,0.1761786]
[1746032876937,0.84330452,1769.9,1769.6,5.65088186]
[1746032877156,0.84330452,1769.9,1769.8,0.1761786]
[1746032877313,0.84330452,1769.9,1769.6,5.65088186]
[1746032877646,0.5269795,1769.9,1769.6,5.65088186]
[1746032877848,0.5269795,1769.9,1769.7,0.1761786]
[1746032878148,0.5269795,1769.8,1769.7,0.1761786]
[1746032878329,0.5269795,1769.8,1769.7,5.65067525]
[1746032878530,0.5269795,1769.9,1769.7,5.82685385]
[1746032878842,0.5269795,1769.9,1769.7,0.1761786]
[1746032879244,0.31637262,1769.8,1769.6,5.65077641]
[1746032879628,0.31637262,1769.8,1769.6,11.30153872]
[1746032879806,0.31637262,1769.8,1769.6,11.30152876]
[1746032880005,0.31637262,1769.8,1769.7,5.65067525]
[1746032880893,0.84349974,1769.8,1769.6,5.65076231]
[1746032881248,0.52712712,1769.8,1769.6,5.65076231]
[1746032881647,6.41926853,1770.0,1769.6,11.30157846]
[1746032881848,7.62615031,1770.0,1769.7,5.65066638]
[1746032882051,5.65035597,1769.8,1769.5,6.46827895]
[1746032882261,5.65154653,1769.5,1769.2,4.772]
[1746032882423,5.65143131,1769.5,1769.2,4.772]
[1746032882742,7.32358193,1769.5,1769.2,4.772]
[1746032882948,0.52702048,1769.4,1769.2,4.772]
[1746032883147,0.84324989,1769.4,1769.2,10.42424244]
[1746032883464,0.52702048,1769.3,1769.2,10.42424244]
[1746032884154,0.31622941,1769.4,1769.2,10.42424244]
[1746032884451,6.45825277,1769.5,1769.2,10.42424244]
[1746032884758,7.96919341,1769.5,1769.2,4.772]
[1746032885125,0.52716315,1769.4,1769.2,4.772]
[1746032885326,6.17881259,1769.4,1769.2,4.772]
[1746032885664,0.8434945,1769.3,1769.2,4.772]
[1746032886888,0.8434945,1769.3,1769.2,10.42427221]
[1746032887167,0.8434945,1769.3,1769.2,4.772]
[1746032889479,1.49303079,1769.3,1769.2,4.772]
[1746032889981,0.8434945,1769.3,1769.2,4.94316889]
[1746032890280,0.8434945,1769.3,1769.2,10.5954411]
[1746032890776,0.8434945,1769.3,1769.2,4.94316889]
[1746032890983,0.52716315,1769.3,1769.2,4.94316889]
[1746032891769,6.17895939,1769.4,1769.2,4.94316889]
[1746032891984,0.56517962,1769.3,1769.2,0.17116889]
[1746032892194,6.28778599,1769.3,1769.2,0.17116889]
[1746032892381,5.65240579,1769.2,1768.9,4.787]
[1746032892685,6.92129787,1769.2,1768.9,4.787]
[1746032892887,6.49625659,1769.1,1768.9,4.787]
[1746032893090,0.84351782,1769.1,1768.9,4.787]
[1746032893295,0.84351782,1769.1,1768.9,10.43996846]
[1746032893499,0.31635467,1769.1,1769.0,5.65291124]
[1746032893789,6.47129646,1769.3,1769.0,5.65291124]
[1746032893974,6.29960509,1769.2,1768.9,4.787]
[1746032894176,6.82685152,1769.2,1768.9,4.787]
[1746032894982,0.52724643,1769.1,1768.9,10.44016371]
[1746032895393,6.47126627,1769.3,1768.9,10.44016371]
[1746032895785,0.52736447,1769.2,1768.9,10.44016371]
[1746032896174,0.8437835,1769.1,1768.9,10.44016371]
[1746032896786,0.52736447,1769.0,1768.9,4.787]
[1746032897488,0.52736447,1769.0,1768.9,10.44023082]
[1746032897703,0.84394835,1769.0,1768.9,10.44023082]
[1746032898020,0.31658388,1769.0,1768.9,10.39023082]
[1746032898914,0.84443873,1769.0,1768.9,10.39023082]
[1746032900924,0.84443873,1769.0,1768.9,4.737]
[1746032901133,5.65355042,1768.8,1768.6,4.787]
[1746032901428,6.9912978,1768.7,1768.5,0.4029331]
[1746032902121,5.65418975,1768.6,1768.5,0.4029331]
[1746032902430,6.1820446,1768.6,1768.5,0.4029331]
[1746032902627,6.49862848,1768.6,1768.5,0.4029331]
[1746032902933,0.84443873,1768.6,1768.5,0.4029331]
[1746032903096,7.30009421,1768.6,1768.5,0.4029331]
[1746032903291,10.30009421,1768.6,1768.5,0.4029331]
[1746032903561,10.22941665,1768.6,1768.5,0.4029331]
[1746032904892,10.22941665,1768.6,1768.5,0.57699932]
[1746032905781,10.64872379,1768.6,1768.5,0.57699932]
[1746032906384,11.53491256,1768.6,1768.5,0.57699932]
[1746032906616,11.46422379,1768.6,1768.5,0.57699932]
[1746032908302,6.91669274,1768.6,1768.5,0.57699932]
[1746032908621,10.70269274,1768.6,1768.5,0.57699932]
[1746032909018,10.77338356,1768.6,1768.5,0.57699932]
[1746032909841,10.70269274,1768.6,1768.5,0.57699932]
[1746032910337,16.86338913,1768.6,1768.5,0.57699932]
[1746032910502,20.21674656,1768.6,1768.5,0.57699932]
[1746032912533,19.66674656,1768.6,1768.5,0.57699932]
[1746032912909,20.21674656,1768.6,1768.5,0.57699932]
[1746032913106,0.771,1768.2,1767.4,5.65797698]
[1746032913412,5.65646208,1767.9,1767.6,4.789]
[1746032913615,5.65646208,1767.9,1767.6,6.450481]
[1746032913844,12.51674036,1768.2,1767.7,5.65695293]
[1746032913845,0.52785485,1767.8,1767.7,5.65695293]
[1746032914143,0.52785485,1767.8,1767.6,12.10749881]
[1746032914350,0.52785485,1767.8,1767.7,5.6570685]
[1746032914518,3.0,1768.0,1767.7,5.6570685]
[1746032915050,3.0,1768.0,1767.7,11.3139583]
[1746032915343,0.31609582,1767.9,1767.8,6.4453485]
[1746032915846,5.65570409,1768.2,1767.8,12.102097]
[1746032916216,0.52665513,1768.1,1767.8,6.4453485]
[1746032916416,0.52665513,1768.1,1767.7,12.08468534]
[1746032916617,0.52665513,1768.1,1767.8,5.65670125]
[1746032916851,0.52665513,1768.0,1767.9,5.65642511]
[1746032917638,3.0,1768.2,1768.0,6.42689421]
[1746032918652,5.955618,1768.2,1767.9,4.835]
[1746032918857,0.52661967,1768.1,1767.9,4.835]
[1746032919529,5.955618,1768.2,1767.9,4.835]
[1746032919846,0.3,1768.2,1767.9,10.49138106]
[1746032920045,3.0,1768.2,1767.9,10.49138106]
[1746032920365,8.65549962,1768.2,1767.9,10.49138106]
[1746032920666,0.52675534,1768.1,1768.0,0.98290462]
[1746032921559,0.84292206,1768.1,1768.0,0.98290462]
[1746032921742,0.84292206,1768.1,1768.0,0.16000462]
[1746032923327,0.84292206,1768.1,1768.0,5.81611321]
[1746032923526,0.84292206,1768.1,1768.0,0.93450462]
[1746032923746,0.84292206,1768.1,1768.0,0.16000462]
[1746032924922,0.84292206,1768.1,1768.0,5.81611321]
[1746032925338,0.84292206,1768.1,1768.0,0.16000462]
[1746032926929,6.49871075,1768.1,1768.0,0.16000462]
[1746032927130,8.09356028,1768.1,1768.0,0.16000462]
[1746032927368,8.09356028,1768.1,1767.7,11.31563375]
[1746032927669,6.49871075,1768.1,1767.7,11.31563375]
[1746032927963,0.84292206,1768.0,1767.8,0.15813806]
[1746032928126,6.49903995,1768.0,1767.8,0.15813806]
[1746032928325,0.52675534,1767.9,1767.8,0.15813806]
[1746032928750,0.52675534,1767.9,1767.8,5.81488656]
[1746032928751,0.84292206,1767.9,1767.8,5.81488656]
[1746032928946,0.84292206,1767.9,1767.8,0.15813806]
[1746032929359,0.84492668,1767.9,1767.8,0.15813806]
[1746032930232,0.84492668,1767.9,1767.8,5.81488656]
[1746032930970,0.84492668,1767.9,1767.8,6.63788656]
[1746032934061,0.84492668,1767.9,1767.8,0.98113806]
[1746032934428,0.84492668,1767.9,1767.8,6.63788656]
[1746032936569,0.84492668,1767.9,1767.8,0.98113806]
[1746032936769,0.84492668,1767.9,1767.8,6.63788656]
[1746032937070,0.84492668,1767.9,1767.8,11.47388656]
[1746032937570,0.84492668,1767.9,1767.8,4.99413806]
[1746032939785,9.50135521,1767.9,1767.8,0.15813806]
[1746032939945,11.01711658,1767.9,1767.8,0.15813806]
[1746032940270,5.65682751,1767.8,1767.6,4.836]
[1746032940479,0.52875996,1767.7,1767.6,4.836]
[1746032940770,0.52875996,1767.7,1767.6,10.49338854]
[1746032941100,0.84492668,1767.7,1767.6,4.836]
[1746032943266,0.84492668,1767.7,1767.6,11.27558854]
[1746032943468,0.84492668,1767.7,1767.6,10.49338854]
[1746032943774,0.84492668,1767.7,1767.6,4.836]
[1746032945364,0.84492668,1767.7,1767.6,10.49338854]
[1746032945698,0.84492668,1767.7,1767.6,4.836]
[1746032947997,6.50199518,1767.7,1767.6,4.836]
[1746032948178,0.84492668,1767.7,1767.6,4.836]
[1746032948799,7.91672742,1767.7,1767.6,4.836]
[1746032949986,7.91672742,1767.7,1767.6,4.98742445]
[1746032951089,1.49215892,1767.7,1767.6,4.98742445]
[1746032951269,0.84492668,1767.7,1767.6,4.98742445]
[1746032952605,6.50199518,1767.7,1767.6,4.98742445]
[1746032952806,0.84492668,1767.7,1767.6,4.98742445]
[1746032953298,6.47991014,1767.7,1767.6,4.98742445]
[1746032953679,0.82284164,1767.7,1767.6,4.98742445]
[1746032954267,0.82284164,1767.7,1767.6,10.64481299]
[1746032954593,0.82284164,1767.7,1767.6,11.46351299]
[1746032955291,0.82284164,1767.7,1767.6,10.64481299]
[1746032955495,0.82284164,1767.7,1767.6,4.98742445]
[1746032955679,0.82284164,1767.7,1767.6,10.64481299]
[1746032956304,0.82284164,1767.7,1767.6,11.66538161]
[1746032956476,0.82284164,1767.7,1767.6,11.47331299]
[1746032960479,0.31616672,1767.7,1767.6,11.47331299]
[1746032960879,9.43460482,1768.2,1767.8,5.65650481]
[1746032961082,3.779,1768.2,1767.9,5.80631285]
[1746032961275,0.31789425,1768.1,1767.9,0.14997614]
[1746032962209,9.4345508,1768.2,1767.9,0.14997614]
[1746032962210,0.31789425,1768.0,1767.9,0.14997614]
[1746032963817,0.31789425,1768.0,1767.7,5.65685533]
[1746032963983,0.31789425,1768.0,1767.9,0.14997614]
[1746032964190,0.31789425,1768.0,1767.7,11.31371702]
[1746032964401,0.31789425,1768.0,1767.9,0.14997614]
[1746032964596,0.31789425,1768.0,1767.7,11.31371702]
[1746032964801,0.31789425,1768.0,1767.9,0.14997614]
[1746032965006,5.65584557,1768.1,1767.7,11.31371702]
[1746032965193,5.65584557,1768.1,1767.9,0.14997614]
[1746032965378,5.65584557,1768.1,1767.7,11.31371702]
[1746032965582,5.65584557,1768.1,1768.0,0.14997614]
[1746032965794,5.65622484,1768.0,1767.7,5.65685533]
[1746032965992,5.65584557,1768.1,1768.0,0.14997614]
[1746032966220,5.6563003,1768.0,1767.6,16.97885522]
[1746032966815,6.47568634,1767.9,1767.6,10.49315996]
[1746032967119,0.84806923,1767.8,1767.6,10.49315996]
[1746032967413,5.6570685,1767.7,1767.6,4.836]
[1746032967641,6.4762685,1767.7,1767.6,4.836]